[Event "AUT 2nd BL Mitte 2021-22"]
[Site "Austria"]
[Date "2022.03.27"]
[Round "9.18"]
[White "Ennsberger, Ulrich"]
[Black "Steiner, Stefan"]
[Result "1-0"]
[ECO "A05"]
[WhiteElo "2265"]
[BlackElo "2264"]
[Annotator "ChessBase"]
[PlyCount "55"]
[EventDate "2021.10.21"]
[EventType "team-tourn"]
[EventCountry "AUT"]
[SourceTitle "playchess.com"]
[Source "ChessBase"]
[SourceQuality "1"]
[TimeControl "40/5400+30:1800+30"]

1. Nf3 {[%emt 0:00:24]} Nf6 {[%emt 0:00:09]} 2. c4 {[%emt 0:00:12]} c5 {[%emt 0:00:05]} 3. e3 {[%emt 0:00:24]} e6 {[%emt 0:00:50]} 4. d4 {[%emt 0:00:09]} d5 {[%emt 0:01:22]} 5. Nc3 {[%emt 0:00:14]} Nc6 {[%emt 0:00:27]} 6. a3 {[%emt 0:01:17]} a6 {[%emt 0:11:17]} 7. cxd5 {[%emt 0:23:50]} exd5 {[%emt 0:04:45]} 8. Be2 {[%emt 0:01:35]} Be7 {[%emt 0:02:09]} 9. O-O {[%emt 0:01:34]} O-O {[%emt 0:00:07]} 10. dxc5 {[%emt 0:03:19]} Bxc5 {[%emt 0:00:08]} 11. b4 {[%emt 0:00:10]} Ba7 {[%emt 0:02:17]} 12. Bb2 {[%emt 0:00:14]} Be6 {[%emt 0:07:02]} 13. Na4 {[%emt 0:02:10]} Ne4 {[%emt 0:14:26]} 14. Nd4 {[%emt 0:00:32]} Rc8 {[%emt 0:03:43]} 15. Nxc6 {[%emt 0:08:09]} Rxc6 {[%emt 0:00:56]} 16. b5 {[%emt 0:03:40]} axb5 {[%emt 0:00:58]} 17. Bxb5 {[%emt 0:00:08]} Rc8 {[%emt 0:04:34]} 18. Bd4 {[%emt 0:00:40]} Bb8 {[%emt 0:01:03]} 19. Qe2 {[%emt 0:09:30]} Qh4 {[%emt 0:17:35]} 20. f4 {[%emt 0:01:17]} Nd6 {[%emt 0:09:55]} 21. Bd3 {[%emt 0:02:05]} Bf5 {[%emt 0:02:37]} 22. Nb6 {[%emt 0:00:40]} Rc6 {[%emt 0:03:31]} 23. Nxd5 {[%emt 0:01:08]} Re8 {[%emt 0:04:10]} 24. Rac1 {[%emt 0:04:23]} Bxd3 {[%emt 0:01:23]} 25. Qxd3 {[%emt 0:00:14]} Qh5 {[%emt 0:00:44]} 26. Rxc6 {[%emt 0:08:17]} bxc6 {[%emt 0:00:00]} 27. Nc3 {[%emt 0:00:15]} Nf5 {[%emt 0:01:16]} 28. Bb6 {[%emt 0:01:39]} 1-0

[Event "AUT 2nd BL Mitte 2021-22"]
[Site "Austria"]
[Date "2022.03.27"]
[Round "9.19"]
[White "Gschnitzer, Adrian"]
[Black "Nemeth, Miklos"]
[Result "1/2-1/2"]
[ECO "C67"]
[WhiteElo "2414"]
[BlackElo "2449"]
[Annotator "ChessBase"]
[PlyCount "32"]
[EventDate "2021.10.21"]
[EventType "team-tourn"]
[EventCountry "AUT"]
[SourceTitle "playchess.com"]
[Source "ChessBase"]
[SourceQuality "1"]
[TimeControl "40/5400+30:1800+30"]

1. e4 {[%emt 0:00:06]} e5 {[%emt 0:00:06]} 2. Nf3 {[%emt 0:00:11]} Nc6 {[%emt 0:00:06]} 3. Bb5 {[%emt 0:00:32]} Nf6 {[%emt 0:00:30]} 4. O-O {[%emt 0:04:54]} Nxe4 {[%emt 0:01:54]} 5. d4 {[%emt 0:04:20]} Nd6 {[%emt 0:02:20]} 6. dxe5 {[%emt 0:04:58]} Nxb5 {[%emt 0:00:24]} 7. a4 {[%emt 0:00:19]} Nbd4 {[%emt 0:03:22]} 8. Nxd4 {[%emt 0:01:22]} Nxd4 {[%emt 0:00:10]} 9. Qxd4 {[%emt 0:00:10]} d5 {[%emt 0:02:58]} 10. exd6 {[%emt 0:04:46]} Qxd6 {[%emt 0:01:01]} 11. Qe4+ {[%emt 0:01:32]} Qe6 {[%emt 0:01:45]} 12. Qd4 {[%emt 0:03:28]} Qd6 {[%emt 0:02:44]} 13. Qe4+ {[%emt 0:00:24]} Qe6 {[%emt 0:00:16]} 14. Qd4 {[%emt 0:00:55]} Qd6 {[%emt 0:00:35]} 15. Qe4+ {[%emt 0:00:11]} Qe6 {[%emt 0:00:13]} 16. Qd4 Qd6 {[%emt 0:00:30]} 1/2-1/2

[Event "AUT 2nd BL Mitte 2021-22"]
[Site "Austria"]
[Date "2022.03.27"]
[Round "9.20"]
[White "Kovacs, Gabor"]
[Black "Csonka, Attila Istvan"]
[Result "1/2-1/2"]
[ECO "B33"]
[WhiteElo "2448"]
[BlackElo "2334"]
[Annotator "ChessBase"]
[PlyCount "40"]
[EventDate "2021.10.21"]
[EventType "team-tourn"]
[EventCountry "AUT"]
[SourceTitle "playchess.com"]
[Source "ChessBase"]
[SourceQuality "1"]
[TimeControl "40/5400+30:1800+30"]

1. e4 {[%emt 0:00:04]} c5 {[%emt 0:00:08]} 2. Nf3 {[%emt 0:00:02]} Nc6 {[%emt 0:00:08]} 3. d4 {[%emt 0:00:03]} cxd4 {[%emt 0:00:07]} 4. Nxd4 {[%emt 0:00:04]} Nf6 {[%emt 0:00:07]} 5. Nc3 {[%emt 0:00:04]} e5 {[%emt 0:00:07]} 6. Ndb5 {[%emt 0:00:04]} d6 {[%emt 0:00:06]} 7. Bg5 {[%emt 0:00:04]} a6 {[%emt 0:00:06]} 8. Na3 {[%emt 0:00:03]} b5 {[%emt 0:00:06]} 9. Nd5 {[%emt 0:00:03]} Qa5+ {[%emt 0:00:06]} 10. Bd2 {[%emt 0:00:03]} Qd8 {[%emt 0:00:05]} 11. Bg5 {[%emt 0:00:04]} Qa5+ {[%emt 0:00:07]} 12. Bd2 {[%emt 0:00:03]} Qd8 {[%emt 0:00:05]} 13. Bg5 {[%emt 0:00:18]} Qa5+ {[%emt 0:00:12]} 14. Bd2 {[%emt 0:00:02]} Qd8 {[%emt 0:00:08]} 15. Bg5 {[%emt 0:00:02]} Qa5+ {[%emt 0:00:10]} 16. Bd2 {[%emt 0:00:02]} Qd8 {[%emt 0:00:07]} 17. Bg5 {[%emt 0:00:02]} Qa5+ {[%emt 0:00:09]} 18. Bd2 {[%emt 0:00:02]} Qd8 {[%emt 0:00:08]} 19. Bg5 {[%emt 0:00:01]} Qa5+ {[%emt 0:00:09]} 20. Bd2 {[%emt 0:00:02]} Qd8 {[%emt 0:00:08]} 1/2-1/2

[Event "AUT 2nd BL Mitte 2021-22"]
[Site "Austria"]
[Date "2022.03.27"]
[Round "9.21"]
[White "Kiss, Attila"]
[Black "Gelbenegger, Patrick"]
[Result "0-1"]
[ECO "D30"]
[WhiteElo "2305"]
[BlackElo "2248"]
[Annotator "ChessBase"]
[PlyCount "46"]
[EventDate "2021.10.21"]
[EventType "team-tourn"]
[EventCountry "AUT"]
[SourceTitle "playchess.com"]
[Source "ChessBase"]
[SourceQuality "1"]
[TimeControl "40/5400+30:1800+30"]

1. d4 {[%emt 0:00:21]} d5 {[%emt 0:00:08]} 2. c4 {[%emt 0:00:11]} e6 {[%emt 0:00:08]} 3. Nf3 {[%emt 0:00:13]} Nf6 {[%emt 0:00:17]} 4. g3 {[%emt 0:00:13]} Bb4+ {[%emt 0:05:37]} 5. Bd2 {[%emt 0:00:11]} Be7 {[%emt 0:00:09]} 6. Qc2 {[%emt 0:00:51]} Nbd7 {[%emt 0:03:55]} 7. Bg2 {[%emt 0:00:15]} O-O {[%emt 0:02:13]} 8. O-O {[%emt 0:00:27]} b6 {[%emt 0:05:39]} 9. cxd5 {[%emt 0:03:06]} Nxd5 {[%emt 0:03:57]} 10. Nc3 {[%emt 0:06:23]} Bb7 {[%emt 0:03:01]} 11. Nxd5 {[%emt 0:03:00]} Bxd5 {[%emt 0:05:04]} 12. e4 {[%emt 0:06:46]} Bb7 {[%emt 0:01:00]} 13. Bf4 {[%emt 0:27:36]} Bd6 {[%emt 0:10:59]} 14. e5 {[%emt 0:04:09]} Be7 {[%emt 0:00:13]} 15. Ng5 {[%emt 0:03:58]} Bxg5 {[%emt 0:10:19]} 16. Bxb7 {[%emt 0:04:25]} Bxf4 {[%emt 0:03:51]} 17. Bxa8 {[%emt 0:02:21]} Qxa8 {[%emt 0:00:08]} 18. Qxc7 {[%emt 0:11:50]} Rd8 {[%emt 0:00:30]} 19. gxf4 {[%emt 0:00:07]} Nf8 {[%emt 0:00:14]} 20. Rac1 {[%emt 0:03:36]} Rxd4 {[%emt 0:07:43]} 21. Rfd1 {[%emt 0:03:07]} Rxf4 {[%emt 0:00:14]} 22. Rc3 {[%emt 0:06:18]} Qe4 {[%emt 0:01:01]} 23. Rd8 {[%emt 0:01:47]} Qe1+ {[%emt 0:00:35]} 0-1

[Event "AUT 2nd BL Mitte 2021-22"]
[Site "Austria"]
[Date "2022.03.27"]
[Round "9.22"]
[White "Enoeckl, Philipp"]
[Black "Schernthaner, David"]
[Result "1/2-1/2"]
[ECO "A45"]
[WhiteElo "2302"]
[BlackElo "2213"]
[Annotator "ChessBase"]
[PlyCount "36"]
[EventDate "2021.10.21"]
[EventType "team-tourn"]
[EventCountry "AUT"]
[SourceTitle "playchess.com"]
[Source "ChessBase"]
[SourceQuality "1"]
[TimeControl "40/5400+30:1800+30"]

1. d4 {[%emt 0:00:03]} Nf6 {[%emt 0:00:04]} 2. Nc3 {[%emt 0:00:05]} d5 {[%emt 0:00:04]} 3. Bf4 {[%emt 0:00:03]} a6 {[%emt 0:01:05]} 4. e3 {[%emt 0:02:45]} c5 {[%emt 0:11:08]} 5. dxc5 {[%emt 0:03:09]} Nc6 {[%emt 0:08:27]} 6. Nf3 {[%emt 0:02:36]} Bg4 {[%emt 0:07:04]} 7. h3 {[%emt 0:02:23]} Bxf3 {[%emt 0:01:18]} 8. Qxf3 {[%emt 0:04:04]} e6 {[%emt 0:00:11]} 9. O-O-O {[%emt 0:05:05]} Qa5 {[%emt 0:08:47]} 10. g4 {[%emt 0:37:48]} Bxc5 {[%emt 0:12:51]} 11. g5 {[%emt 0:01:51]} Nd7 {[%emt 0:04:07]} 12. Kb1 {[%emt 0:03:50]} Nb6 {[%emt 0:06:09]} 13. Bc7 {[%emt 0:06:33]} Rc8 {[%emt 0:02:59]} 14. Qg3 {[%emt 0:02:00]} Be7 {[%emt 0:10:06]} 15. h4 {[%emt 0:02:25]} Bd8 {[%emt 0:00:26]} 16. Bd6 {[%emt 0:04:57]} Be7 {[%emt 0:01:04]} 17. Bc7 {[%emt 0:03:37]} Bd8 {[%emt 0:00:39]} 18. Bd6 {[%emt 0:00:05]} Be7 {[%emt 0:00:11]} 1/2-1/2

[Event "AUT 2nd BL Mitte 2021-22"]
[Site "Austria"]
[Date "2022.03.27"]
[Round "9.23"]
[White "Marakovits, Nico"]
[Black "Meyer, Gordon"]
[Result "1-0"]
[ECO "E95"]
[WhiteElo "2249"]
[BlackElo "2208"]
[Annotator "ChessBase"]
[PlyCount "113"]
[EventDate "2021.10.21"]
[EventType "team-tourn"]
[EventCountry "AUT"]
[SourceTitle "playchess.com"]
[Source "ChessBase"]
[SourceQuality "1"]
[TimeControl "40/5400+30:1800+30"]

1. d4 {[%emt 0:00:06]} Nf6 {[%emt 0:00:11]} 2. c4 {[%emt 0:00:07]} g6 {[%emt 0:00:15]} 3. Nc3 {[%emt 0:00:18]} Bg7 {[%emt 0:00:15]} 4. e4 {[%emt 0:00:05]} d6 {[%emt 0:00:05]} 5. Nf3 {[%emt 0:00:04]} O-O {[%emt 0:00:13]} 6. Be2 {[%emt 0:00:03]} Nbd7 {[%emt 0:00:19]} 7. O-O {[%emt 0:00:19]} e5 {[%emt 0:00:06]} 8. Re1 {[%emt 0:00:17]} Qe7 {[%emt 0:02:26]} 9. d5 {[%emt 0:03:53]} c5 {[%emt 0:00:37]} 10. dxc6 {[%emt 0:05:41]} bxc6 {[%emt 0:00:07]} 11. b4 {[%emt 0:05:32]} Bb7 {[%emt 0:00:11]} 12. Rb1 {[%emt 0:07:38]} Rfd8 {[%emt 0:01:04]} 13. Qb3 {[%emt 0:12:19]} Nf8 {[%emt 0:04:11]} 14. b5 {[%emt 0:08:58]} cxb5 {[%emt 0:15:06]} 15. Bf1 {[%emt 0:01:02]} Rab8 {[%emt 0:09:32]} 16. cxb5 {[%emt 0:00:47]} Ne6 {[%emt 0:13:04]} 17. Ba3 {[%emt 0:02:32]} Nc5 {[%emt 0:14:00]} 18. Bxc5 {[%emt 0:01:34]} dxc5 {[%emt 0:00:05]} 19. Qa3 {[%emt 0:01:25]} Bh6 {[%emt 0:07:38]} 20. Rb2 {[%emt 0:06:20]} Qc7 {[%emt 0:02:25]} 21. Rc2 {[%emt 0:02:20]} Rbc8 {[%emt 0:09:47]} 22. Bc4 {[%emt 0:03:33]} Kg7 {[%emt 0:01:53]} 23. h3 {[%emt 0:01:59]} Rd7 {[%emt 0:03:48]} 24. Qb2 {[%emt 0:03:42]} Re8 {[%emt 0:04:11]} 25. Qa3 {[%emt 0:04:49]} Ba8 {[%emt 0:02:23]} 26. Qa4 {[%emt 0:01:17]} Qd8 {[%emt 0:01:30]} 27. Qb3 {[%emt 0:02:55]} Ree7 {[%emt 0:00:44]} 28. Qa3 {[%emt 0:02:55]} Bd2 {[%emt 0:01:55]} 29. Rxd2 {[%emt 0:02:47]} Rxd2 {[%emt 0:00:05]} 30. Nxd2 {[%emt 0:00:28]} Qxd2 {[%emt 0:00:05]} 31. Rd1 {[%emt 0:00:07]} Qg5 {[%emt 0:00:40]} 32. Bd5 {[%emt 0:04:08]} Nxd5 {[%emt 0:01:43]} 33. Nxd5 {[%emt 0:00:11]} Bxd5 {[%emt 0:00:59]} 34. Rxd5 {[%emt 0:02:02]} Qf4 {[%emt 0:00:41]} 35. Qxc5 {[%emt 0:01:52]} Qxe4 {[%emt 0:00:22]} 36. Qxe7 {[%emt 0:00:30]} Qxd5 {[%emt 0:00:08]} 37. Qxa7 {[%emt 0:00:19]} Qxb5 {[%emt 0:00:06]} 38. a4 {[%emt 0:00:07]} Qb1+ {[%emt 0:02:26]} 39. Kh2 {[%emt 0:00:09]} Qa1 {[%emt 0:00:53]} 40. a5 {[%emt 0:00:00]} e4 {[%emt 0:00:00]} 41. Qb6 {[%emt 0:11:37]} h5 {[%emt 0:08:23]} 42. h4 {[%emt 0:05:48]} Kh7 {[%emt 0:13:04]} 43. a6 {[%emt 0:03:49]} e3 {[%emt 0:01:13]} 44. fxe3 {[%emt 0:00:15]} Qe5+ {[%emt 0:00:06]} 45. Kg1 {[%emt 0:03:52]} Qa1+ {[%emt 0:06:09]} 46. Kf2 {[%emt 0:01:36]} Qa2+ {[%emt 0:00:08]} 47. Kg3 {[%emt 0:04:01]} Qe2 {[%emt 0:00:17]} 48. Kh2 {[%emt 0:00:35]} Qg4 {[%emt 0:06:04]} 49. Qd4 {[%emt 0:00:21]} Qe6 {[%emt 0:00:19]} 50. a7 {[%emt 0:00:53]} Qa6 {[%emt 0:00:59]} 51. Qc5 {[%emt 0:06:05]} Qa4 {[%emt 0:01:26]} 52. Qe7 {[%emt 0:00:29]} Kg7 {[%emt 0:01:30]} 53. e4 {[%emt 0:00:54]} Qa1 {[%emt 0:00:33]} 54. e5 {[%emt 0:03:49]} Qa5 {[%emt 0:00:04]} 55. Qb7 {[%emt 0:00:47]} Qxe5+ {[%emt 0:00:05]} 56. g3 {[%emt 0:00:04]} Qb2+ {[%emt 0:00:47]} 57. Qxb2+ {[%emt 0:00:05]} 1-0

[Event "AUT 2nd BL Mitte 2021-22"]
[Site "Austria"]
[Date "2022.03.27"]
[Round "9.24"]
[White "Wiesinger, Robert"]
[Black "Eibinger, Manuel"]
[Result "1/2-1/2"]
[ECO "B48"]
[WhiteElo "2200"]
[BlackElo "2024"]
[Annotator "ChessBase"]
[PlyCount "133"]
[EventDate "2021.10.21"]
[EventType "team-tourn"]
[EventCountry "AUT"]
[SourceTitle "playchess.com"]
[Source "ChessBase"]
[SourceQuality "1"]
[TimeControl "40/5400+30:1800+30"]

1. e4 {[%emt 0:00:03]} c5 {[%emt 0:00:06]} 2. Nf3 {[%emt 0:00:11]} e6 {[%emt 0:00:07]} 3. d4 {[%emt 0:00:15]} cxd4 {[%emt 0:00:10]} 4. Nxd4 {[%emt 0:00:07]} Nc6 {[%emt 0:00:08]} 5. Nc3 {[%emt 0:00:38]} Qc7 {[%emt 0:00:15]} 6. Be3 {[%emt 0:00:28]} a6 {[%emt 0:00:25]} 7. Qd2 {[%emt 0:00:14]} Nf6 {[%emt 0:00:33]} 8. O-O-O {[%emt 0:00:32]} Be7 {[%emt 0:00:27]} 9. f3 {[%emt 0:01:09]} b5 {[%emt 0:00:52]} 10. Nxc6 {[%emt 0:09:02]} dxc6 {[%emt 0:02:25]} 11. Qf2 {[%emt 0:01:14]} O-O {[%emt 0:04:09]} 12. g4 {[%emt 0:02:08]} c5 {[%emt 0:04:43]} 13. Kb1 {[%emt 0:05:03]} Bb7 {[%emt 0:03:36]} 14. g5 {[%emt 0:09:54]} Nh5 {[%emt 0:09:59]} 15. Bh3 {[%emt 0:04:18]} Rad8 {[%emt 0:05:39]} 16. Bg4 {[%emt 0:22:47]} Nf4 {[%emt 0:02:53]} 17. h4 {[%emt 0:00:24]} e5 {[%emt 0:15:59]} 18. Ne2 {[%emt 0:11:46]} Nxe2 {[%emt 0:02:36]} 19. Qxe2 {[%emt 0:00:17]} Rxd1+ {[%emt 0:00:52]} 20. Rxd1 {[%emt 0:00:27]} Rd8 {[%emt 0:00:09]} 21. Kc1 {[%emt 0:05:40]} Rxd1+ {[%emt 0:04:46]} 22. Qxd1 {[%emt 0:02:08]} Qd6 {[%emt 0:00:31]} 23. c4 {[%emt 0:05:18]} Qxd1+ {[%emt 0:09:03]} 24. Kxd1 {[%emt 0:00:02]} b4 {[%emt 0:00:16]} 25. a3 {[%emt 0:09:04]} bxa3 {[%emt 0:06:37]} 26. bxa3 {[%emt 0:00:13]} Bd6 {[%emt 0:02:16]} 27. Bd2 {[%emt 0:05:56]} Bc7 {[%emt 0:00:20]} 28. Ke2 {[%emt 0:01:04]} Kf8 {[%emt 0:00:44]} 29. Bf5 {[%emt 0:01:24]} g6 {[%emt 0:00:10]} 30. Bg4 {[%emt 0:00:11]} Ke7 {[%emt 0:01:17]} 31. Be3 {[%emt 0:01:38]} Bd6 {[%emt 0:05:28]} 32. Bf2 {[%emt 0:00:45]} Kd8 {[%emt 0:01:08]} 33. Bg3 {[%emt 0:00:32]} Ke7 {[%emt 0:02:13]} 34. Ke3 {[%emt 0:00:24]} f6 {[%emt 0:09:08]} 35. Be1 {[%emt 0:00:12]} Bc7 {[%emt 0:00:09]} 36. Bc3 {[%emt 0:00:21]} fxg5 {[%emt 0:00:47]} 37. hxg5 {[%emt 0:00:03]} Kd6 {[%emt 0:02:13]} 38. Kf2 {[%emt 0:00:48]} Bd8 {[%emt 0:00:59]} 39. Bd2 {[%emt 0:00:19]} Be7 {[%emt 0:01:43]} 40. Kg3 {[%emt 0:00:37]} Bd8 {[%emt 0:00:42]} 41. Bh3 {[%emt 0:10:03]} Be7 {[%emt 0:01:33]} 42. Bg2 {[%emt 0:05:05]} Ke6 {[%emt 0:02:45]} 43. f4 {[%emt 0:02:59]} exf4+ {[%emt 0:00:39]} 44. Bxf4 {[%emt 0:02:30]} Bd8 {[%emt 0:05:36]} 45. Bh3+ {[%emt 0:02:29]} Ke7 {[%emt 0:00:18]} 46. Kf3 {[%emt 0:00:42]} Ba5 {[%emt 0:03:51]} 47. Ke3 {[%emt 0:01:36]} Bc3 {[%emt 0:00:55]} 48. Kd3 {[%emt 0:02:10]} Bb2 {[%emt 0:01:21]} 49. a4 {[%emt 0:00:35]} Bc6 {[%emt 0:10:51]} 50. a5 {[%emt 0:00:36]} Bb7 {[%emt 0:00:06]} 51. Bg4 {[%emt 0:04:35]} Ba3 {[%emt 0:01:50]} 52. Be5 {[%emt 0:02:02]} Bb4 {[%emt 0:04:04]} 53. Bf6+ {[%emt 0:01:56]} Ke8 {[%emt 0:00:21]} 54. e5 {[%emt 0:01:19]} Bxa5 {[%emt 0:00:21]} 55. Be6 {[%emt 0:00:18]} Bd8 {[%emt 0:02:35]} 56. Bd5 {[%emt 0:00:37]} Bc8 {[%emt 0:03:34]} 57. e6 {[%emt 0:00:18]} Be7 {[%emt 0:00:53]} 58. Ke4 {[%emt 0:01:08]} a5 {[%emt 0:00:46]} 59. Ke5 {[%emt 0:00:16]} a4 {[%emt 0:00:14]} 60. Bc6+ {[%emt 0:00:13]} Kf8 {[%emt 0:00:03]} 61. Bxa4 {[%emt 0:00:23]} Bb7 {[%emt 0:00:21]} 62. Bc2 {[%emt 0:00:50]} Bc8 {[%emt 0:01:03]} 63. Be4 {[%emt 0:00:28]} Ba6 {[%emt 0:00:17]} 64. Bd5 {[%emt 0:00:14]} Bc8 {[%emt 0:00:17]} 65. Bc6 {[%emt 0:00:44]} Ba6 {[%emt 0:00:35]} 66. Bd5 {[%emt 0:01:08]} Bc8 {[%emt 0:00:06]} 67. Bc6 1/2-1/2

[Event "AUT 2nd BL Mitte 2021-22"]
[Site "Austria"]
[Date "2022.03.27"]
[Round "9.28"]
[White "Milanovic, Danilo"]
[Black "Rodshtein, Maxim"]
[Result "1/2-1/2"]
[ECO "E48"]
[WhiteElo "2406"]
[BlackElo "2591"]
[Annotator "ChessBase"]
[PlyCount "102"]
[EventDate "2021.10.21"]
[EventType "team-tourn"]
[EventCountry "AUT"]
[SourceTitle "playchess.com"]
[Source "ChessBase"]
[SourceQuality "1"]
[TimeControl "40/5400+30:1800+30"]

1. d4 {[%emt 0:00:03]} Nf6 {[%emt 0:00:08]} 2. c4 {[%emt 0:00:07]} e6 {[%emt 0:00:09]} 3. Nc3 {[%emt 0:00:04]} Bb4 {[%emt 0:00:09]} 4. e3 {[%emt 0:00:09]} O-O {[%emt 0:00:27]} 5. Bd3 {[%emt 0:00:05]} d5 {[%emt 0:00:52]} 6. cxd5 {[%emt 0:00:35]} exd5 {[%emt 0:00:06]} 7. Nge2 {[%emt 0:00:07]} Re8 {[%emt 0:01:11]} 8. O-O {[%emt 0:00:47]} Bd6 {[%emt 0:02:12]} 9. f3 {[%emt 0:04:49]} c5 {[%emt 0:00:54]} 10. Qe1 {[%emt 0:01:35]} b6 {[%emt 0:04:16]} 11. Qf2 {[%emt 0:14:30]} Ba6 {[%emt 0:03:22]} 12. Bxa6 {[%emt 0:02:46]} Nxa6 {[%emt 0:00:06]} 13. a3 {[%emt 0:00:39]} Nc7 {[%emt 0:04:41]} 14. Bd2 {[%emt 0:00:21]} Ne6 {[%emt 0:16:14]} 15. Rad1 {[%emt 0:03:23]} Qe7 16. g4 {[%emt 0:32:06]} Rad8 {[%emt 0:12:26]} 17. h4 Qb7 {[%emt 0:06:29]} 18. g5 {[%emt 0:15:20]} Nh5 {[%emt 0:01:02]} 19. f4 {[%emt 0:00:20]} cxd4 {[%emt 0:05:44]} 20. exd4 {[%emt 0:02:10]} g6 {[%emt 0:00:13]} 21. Qg2 {[%emt 0:02:43]} Bb8 {[%emt 0:04:37]} 22. f5 {[%emt 0:08:48]} Neg7 {[%emt 0:00:06]} 23. f6 {[%emt 0:01:41]} Ne6 {[%emt 0:00:08]} 24. Qf3 {[%emt 0:07:40]} b5 {[%emt 0:01:37]} 25. Rf2 {[%emt 0:00:33]} a6 {[%emt 0:05:38]} 26. Be3 {[%emt 0:01:12]} a5 {[%emt 0:05:12]} 27. b4 {[%emt 0:00:12]} axb4 {[%emt 0:00:19]} 28. axb4 {[%emt 0:00:01]} Qc6 {[%emt 0:00:25]} 29. Bc1 {[%emt 0:01:32]} Qc4 {[%emt 0:07:26]} 30. Qd3 {[%emt 0:00:06]} Qxb4 {[%emt 0:00:38]} 31. Qxb5 {[%emt 0:00:23]} Qxb5 {[%emt 0:04:29]} 32. Nxb5 {[%emt 0:00:05]} Ng3 {[%emt 0:00:11]} 33. Nxg3 {[%emt 0:01:15]} Bxg3 {[%emt 0:00:07]} 34. Rg2 {[%emt 0:00:05]} Bb8 {[%emt 0:02:57]} 35. Nc3 {[%emt 0:01:09]} Nxd4 {[%emt 0:00:58]} 36. Rg4 {[%emt 0:00:38]} Ne2+ {[%emt 0:07:19]} 37. Nxe2 {[%emt 0:00:14]} Rxe2 {[%emt 0:00:06]} 38. Kf1 {[%emt 0:00:17]} Re5 {[%emt 0:03:36]} 39. Bb2 {[%emt 0:00:55]} Rf5+ {[%emt 0:00:18]} 40. Kg2 {[%emt 0:00:00]} Re8 {[%emt 0:00:00]} 41. Rd2 {[%emt 0:01:22]} h6 {[%emt 0:08:03]} 42. Rf2 {[%emt 0:03:50]} Ba7 {[%emt 0:12:34]} 43. Rxf5 {[%emt 0:02:16]} gxf5 {[%emt 0:00:05]} 44. Ra4 {[%emt 0:00:25]} Be3 {[%emt 0:06:11]} 45. gxh6 {[%emt 0:22:09]} Bxh6 {[%emt 0:00:11]} 46. Rb4 {[%emt 0:00:25]} Re4 {[%emt 0:05:49]} 47. Rb8+ {[%emt 0:00:21]} Kh7 {[%emt 0:00:05]} 48. h5 {[%emt 0:00:13]} Bg5 {[%emt 0:03:27]} 49. Kf2 {[%emt 0:04:01]} d4 {[%emt 0:00:49]} 50. Rf8 {[%emt 0:00:07]} Rf4+ {[%emt 0:00:53]} 51. Kg3 {[%emt 0:00:47]} Rg4+ {[%emt 0:00:14]} 1/2-1/2

[Event "AUT 2nd BL Mitte 2021-22"]
[Site "Austria"]
[Date "2022.03.27"]
[Round "9.29"]
[White "Balogh, Csaba"]
[Black "Schieder, Josef"]
[Result "1-0"]
[ECO "B12"]
[WhiteElo "2574"]
[BlackElo "1976"]
[Annotator "ChessBase"]
[PlyCount "45"]
[EventDate "2021.10.21"]
[EventType "team-tourn"]
[EventCountry "AUT"]
[SourceTitle "playchess.com"]
[Source "ChessBase"]
[SourceQuality "1"]
[TimeControl "40/5400+30:1800+30"]

1. e4 {[%emt 0:00:05]} c6 {[%emt 0:00:11]} 2. d4 {[%emt 0:00:55]} d5 {[%emt 0:00:06]} 3. e5 {[%emt 0:00:06]} c5 {[%emt 0:00:05]} 4. dxc5 {[%emt 0:05:15]} Nc6 {[%emt 0:00:08]} 5. Nf3 {[%emt 0:00:23]} Bg4 {[%emt 0:00:43]} 6. c3 {[%emt 0:00:49]} Bxf3 {[%emt 0:10:43]} 7. Qxf3 {[%emt 0:00:14]} Nxe5 {[%emt 0:03:42]} 8. Bb5+ {[%emt 0:00:33]} Nc6 {[%emt 0:00:06]} 9. O-O {[%emt 0:01:23]} e6 {[%emt 0:00:54]} 10. b4 {[%emt 0:00:33]} a6 {[%emt 0:04:39]} 11. Ba4 {[%emt 0:14:05]} Nge7 {[%emt 0:05:50]} 12. Nd2 {[%emt 0:05:29]} g6 {[%emt 0:02:50]} 13. Qf6 {[%emt 0:02:42]} Rg8 {[%emt 0:00:43]} 14. Qf3 {[%emt 0:02:21]} Bg7 {[%emt 0:00:19]} 15. Nb3 {[%emt 0:00:18]} Kf8 {[%emt 0:00:19]} 16. Bf4 {[%emt 0:10:50]} e5 {[%emt 0:05:19]} 17. Bg5 {[%emt 0:05:30]} e4 {[%emt 0:13:46]} 18. Qe3 {[%emt 0:03:35]} Qc8 {[%emt 0:09:37]} 19. f3 {[%emt 0:05:36]} Nf5 {[%emt 0:03:09]} 20. Qd2 {[%emt 0:00:07]} Ne5 {[%emt 0:21:26]} 21. fxe4 {[%emt 0:02:15]} dxe4 {[%emt 0:00:19]} 22. Rxf5 {[%emt 0:00:26]} gxf5 {[%emt 0:00:27]} 23. Qd6# {[%emt 0:00:11]} 1-0

[Event "AUT 2nd BL Mitte 2021-22"]
[Site "Austria"]
[Date "2022.03.27"]
[Round "9.30"]
[White "Steiner, Peter"]
[Black "Czebe, Attila"]
[Result "0-1"]
[ECO "B23"]
[WhiteElo "1933"]
[BlackElo "2358"]
[Annotator "ChessBase"]
[PlyCount "68"]
[EventDate "2021.10.21"]
[EventType "team-tourn"]
[EventCountry "AUT"]
[SourceTitle "playchess.com"]
[Source "ChessBase"]
[SourceQuality "1"]
[TimeControl "40/5400+30:1800+30"]

1. e4 {[%emt 0:00:08]} c5 {[%emt 0:00:41]} 2. Nc3 {[%emt 0:00:14]} a6 {[%emt 0:00:12]} 3. g3 {[%emt 0:00:41]} b5 {[%emt 0:00:07]} 4. Bg2 {[%emt 0:00:45]} Bb7 {[%emt 0:00:04]} 5. Nge2 {[%emt 0:05:13]} g6 {[%emt 0:02:56]} 6. O-O {[%emt 0:08:51]} Bg7 {[%emt 0:00:05]} 7. Nd5 {[%emt 0:00:12]} e6 {[%emt 0:00:20]} 8. Ne3 {[%emt 0:00:08]} Ne7 {[%emt 0:01:02]} 9. c3 {[%emt 0:02:59]} d6 {[%emt 0:07:51]} 10. d4 {[%emt 0:00:15]} Nd7 {[%emt 0:00:09]} 11. d5 {[%emt 0:26:49]} exd5 {[%emt 0:02:07]} 12. Nxd5 {[%emt 0:01:12]} Nxd5 {[%emt 0:00:10]} 13. exd5 {[%emt 0:00:09]} O-O {[%emt 0:00:07]} 14. Bf4 {[%emt 0:04:02]} Nb6 {[%emt 0:01:46]} 15. Qd2 {[%emt 0:02:17]} Nc4 {[%emt 0:00:11]} 16. Qc2 {[%emt 0:02:25]} Bc8 {[%emt 0:00:06]} 17. Rad1 {[%emt 0:02:46]} Bf5 {[%emt 0:00:07]} 18. Qc1 {[%emt 0:00:23]} Qd7 {[%emt 0:00:29]} 19. b3 {[%emt 0:09:01]} Rfe8 {[%emt 0:00:18]} 20. Rfe1 {[%emt 0:01:38]} Ne5 {[%emt 0:00:15]} 21. Bxe5 Rxe5 22. f4 {[%emt 0:11:04]} Re7 {[%emt 0:01:37]} 23. Kf2 {[%emt 0:03:32]} Bg4 {[%emt 0:01:22]} 24. Bf3 Bxf3 25. Kxf3 {[%emt 0:00:56]} Qb7 {[%emt 0:08:57]} 26. c4 {[%emt 0:09:23]} bxc4 {[%emt 0:01:35]} 27. bxc4 {[%emt 0:00:01]} Qb4 {[%emt 0:01:23]} 28. Rd3 {[%emt 0:06:59]} Rae8 {[%emt 0:00:33]} 29. Rb3 {[%emt 0:00:11]} Qa4 {[%emt 0:05:00]} 30. Nc3 {[%emt 0:02:25]} Rxe1 {[%emt 0:02:10]} 31. Qxe1 {[%emt 0:00:02]} Qd7 {[%emt 0:00:13]} 32. Qd2 {[%emt 0:01:13]} Qh3 {[%emt 0:00:38]} 33. Nd1 {[%emt 0:00:34]} Qf1+ {[%emt 0:00:42]} 34. Nf2 {[%emt 0:01:02]} Bd4 {[%emt 0:00:30]} 0-1